lending/lending_fUSD_20250408
["ID","MTS","AMOUNT","RATE_DAILY","PERIOD"]
[357552475,1744135927808,-93.80884529,0.00060273,120]
[357552476,1744135927819,-500.0,0.00060273,120]
[357552477,1744135927828,-500.0,0.00060273,120]
[357552478,1744135927838,-500.0,0.00060273,120]
[357552479,1744135927847,-404.17347107,0.00060273,120]
[357552480,1744135927856,-500.0,0.00060273,120]
[357552481,1744135927865,-500.0,0.00060273,120]
[357552482,1744135927874,-686.22,0.00060273,120]
[357552483,1744135927883,-500.0,0.00060273,120]
[357552484,1744135927892,-589.26,0.00060273,120]
[357552485,1744135927901,-500.0,0.00060273,120]
[357552486,1744135927910,-500.0,0.00060273,120]
[357552487,1744135927919,-7.55518364,0.00060273,120]
[357552488,1744135928159,-492.44481636,0.00060273,120]
[357552489,1744135928168,-500.0,0.00060273,120]
[357552490,1744135928177,-483.35518364,0.00060273,120]
[357552491,1744135928196,-300.75951367,0.00057808,120]
[357552492,1744135928467,-608.8717179,0.00039137,2]
[357552493,1744135928480,-511.1282821,0.00039137,2]
[357552494,1744135928489,-146.15098916,0.00042137,2]
[357552495,1744135928501,-630.820596,0.00042137,2]
[357552496,1744135928516,-343.02841484,0.00042137,2]
[357552497,1744135928526,-167.83791984,0.00051429,5]
[357552498,1744136633411,250.0,0.00019,2]
[357552499,1744136820087,931.85106403,0.00015,14]
[357552500,1744136884373,2098.25054116,0.00015,2]
[357552501,1744136884407,34992.34936365,0.00015,2]
[357552502,1744136956210,-1120.476723,0.00019899,2]
[357552503,1744136956232,-850.0,0.00019999,2]
[357552504,1744136956255,-112733.045077,0.0002,2]
[357552505,1744136958153,-58893.00298,0.0002,2]
[357552506,1744136959137,-47666.4944,0.0002,2]
[357552507,1744136959172,-8128.611274,0.0002,2]
[357552508,1744136961100,-4440.634604,0.0002,2]
[357552509,1744136967126,-95934.8999,0.0002,2]
[357552533,1744137031720,-178.0,0.00019999,2]
[357552534,1744137031730,-207.267424,0.0002,2]
[357552535,1744137031855,-1028.33216437,0.0002,2]
[357552536,1744137031868,-386.85,0.0002,2]
[357552537,1744137031884,-842.16033665,0.0002,2]
[357552563,1744137038548,-88086.96073833,0.0002,2]
[357552564,1744137038558,-449.39835575,0.00020875,2]
[357552565,1744137038568,-8139.55864687,0.00021,2]
[357552566,1744137038578,-7031.67595568,0.000217,2]
[357552567,1744137038588,-5434.0,0.000218,2]
[357552568,1744137038598,-33018.12504971,0.000225,2]
[357552569,1744137038608,-9925.14729445,0.000232,2]
[357552570,1744137038618,-27166.8810639,0.00024,2]
[357552590,1744137041513,-1571.746723,0.00024,2]
[357552591,1744137041782,-571.16766203,0.00024,2]
[357552592,1744137041794,-1161.15,0.00024,2]
[357552632,1744137044461,-10570.0675,0.00024,2]
[357552704,1744137045767,-7754.09299518,0.00024,2]
[357552705,1744137045780,-389.56174377,0.00024,2]
[357552706,1744137045846,-2354.33019256,0.00024,2]
[357552707,1744137045856,-3216.12434712,0.00024,5]
[357552708,1744137045868,-743.72550565,0.00024,5]
[357552709,1744137046079,-1040.1571412,0.00024,5]
[357552710,1744137046088,-14509.62855638,0.00024,2]
[357552711,1744137046143,-407.03320693,0.00024,2]
[357552712,1744137046156,-549.55951288,0.00024,2]
[357552713,1744137046167,-7659.84716116,0.00024,2]
[357552736,1744137269261,150.0,0.00019075,2]
[357552737,1744137379509,785.67,0.00019075,2]
[357552738,1744137660500,150.0,0.00019075,2]
[357552739,1744137885183,-6161.0,0.0002,2]
[357552748,1744138031085,-416.29641237,0.0002,2]
[357552749,1744138037090,-2203.47191141,0.0002,2]
[357552750,1744138120439,5000.0,0.00019,2]
[357552751,1744138148080,-1219.23167622,0.0002,2]
[357552752,1744138148100,-166.99824,0.0002388,2]
[357552753,1744138148123,-532.46827778,0.00024,2]
[357552754,1744138169105,-545.3594944,0.00024,2]
[357552755,1744138173086,-1177.859746,0.00024,2]
[357552763,1744138231831,-741.66842505,0.00024,2]
[357552764,1744138231842,-798.62783,0.00024,2]
[357552765,1744138231853,-3431.08971061,0.00024,2]
[357552766,1744138231868,-680.58325649,0.00024,2]
[357552767,1744138231878,-186.87538348,0.00025,2]
[357552768,1744138231887,-151.88,0.00026849,2]
[357552769,1744138231897,-152.4,0.00026849,2]
[357552770,1744138231907,-227.48008213,0.0002695,2]
[357552771,1744138231918,-689.64722302,0.0002695,2]
[357552772,1744138231927,-300.0,0.00029999,2]
[357552773,1744138231936,-1155.37277898,0.0003,2]
[357552774,1744138231948,-898.46097204,0.0003,2]
[357552775,1744138231959,-577.71743555,0.0003,2]
[357552776,1744138231978,-540.3519349,0.0003,2]
[357552777,1744138231990,-405.23430088,0.0003,2]
[357552778,1744138232001,-433.2585,0.0003,2]
[357552779,1744138232012,-559.52384365,0.0003,2]
[357552781,1744138232021,-73.41615635,0.00034192,2]
[357552783,1744138232032,-78.46384365,0.00034192,2]
[357552785,1744138232042,-159.29,0.00035,2]
[357552787,1744138232052,-71.94066488,0.00035,2]
[357552789,1744138232063,-723.08598451,0.00035,2]
[357552791,1744138232074,-539.75,0.00035,2]
[357552793,1744138232086,-1421.86906657,0.00035,2]
[357552798,1744138232124,-870.29297472,0.00035,2]
[357552800,1744138232136,-482.3115,0.00035,2]
[357552802,1744138232148,-330.00000008,0.00035,2]
[357552804,1744138232159,-531.21372733,0.00035,2]
[357552806,1744138232171,-404.4750197,0.00035,2]
[357552826,1744138232364,-370.36999997,0.00035,2]
[357552856,1744138237964,-680.32716223,0.000274,2]
[357552857,1744138238013,-21.67283777,0.000274,2]
[357552858,1744138238023,-1963.79378429,0.00035,2]
[357552859,1744138238034,-289.54727795,0.00035,2]
[357552860,1744138238044,-258.37,0.00035,2]
[357552861,1744138238053,-3952.98965924,0.00035,2]
[357552862,1744138238072,-2318.25034076,0.00035,2]
[357552863,1744138238081,-999.99,0.00035,2]
[357552864,1744138238090,-1459.79,0.00035,2]
[357552865,1744138238100,-4008.7,0.00035,2]
[357552866,1744138238109,-299.99,0.00035,30]
[357552867,1744138238119,-217.57834567,0.00035242,2]
[357552868,1744138238128,-594.47434007,0.00035535,30]
[357552869,1744138238137,-4972.90498036,0.000356,7]
[357552870,1744138238146,-2000.0,0.00035616,120]
[357552871,1744138238155,-2000.0,0.00035616,120]
[357552872,1744138238164,-2000.0,0.00035616,120]
[357552873,1744138238172,-967.02509238,0.00035616,120]
[357552874,1744138238181,-1118.643,0.00035634,42]
[357552875,1744138238190,-317.3,0.00035637,2]
[357552876,1744138238200,-200.0,0.00035918,7]
[357552877,1744138238209,-1000.0,0.00036128,30]
[357552878,1744138238218,-250.0,0.00036225,120]
[357552879,1744138238227,-172.71,0.00036343,120]
[357552880,1744138238236,-199.05,0.00036414,2]
[357552881,1744138238245,-250.0,0.00036452,2]
[357552882,1744138238255,-23900.0,0.00036477,2]
[357552883,1744138238264,-200.0,0.00036481,2]
[357552884,1744138238273,-934.78,0.0003649,2]
[357552885,1744138238283,-150.0,0.00036527,2]
[357552886,1744138238292,-158.72,0.0003653,2]
[357552887,1744138238301,-2000.0,0.00036582,2]
[357552888,1744138238310,-1000.0,0.00036681,2]
[357552889,1744138238320,-577.71,0.0003671,2]
[357552890,1744138238329,-500.0,0.00036973,5]
[357552891,1744138238338,-1026.88417251,0.00036999,30]
[357552892,1744138238347,-441.88364205,0.00037,2]
[357552893,1744138238356,-75041.2276196,0.00037,2]
[357552894,1744138238371,-2970.399997,0.00037,2]
[357552898,1744138238417,-2287.74335503,0.00037,2]
[357552900,1744138238426,-156.65,0.00037175,2]
[357552901,1744138238436,-644.69924137,0.00037555,2]
[357553011,1744138240031,-935.14971856,0.00037555,2]
[357553012,1744138240044,-42.11104007,0.00037555,2]
[357553013,1744138240054,-855.82172857,0.00037636,2]
[357553014,1744138240065,-1481.48000003,0.00037636,2]
[357553015,1744138240190,-913.78531826,0.00037636,2]
[357553016,1744138240200,-225.69,0.00037702,2]
[357553017,1744138240210,-317.3,0.00037901,2]
[357553018,1744138240220,-475.95,0.00038004,2]
[357553019,1744138240229,-161.74,0.0003813,2]
[357553020,1744138240239,-1119.0,0.00038794,2]
[357553021,1744138240249,-698.13643847,0.00038914,30]
[357553022,1744138240261,-301.86356153,0.00038914,30]
[357553023,1744138240271,-176.0,0.00039,120]
[357553024,1744138240281,-225.69,0.00039072,2]
[357553025,1744138240291,-139.8671695,0.00039087,2]
[357553026,1744138240303,-12.5328305,0.00039087,2]
[357553027,1744138240313,-1320.0,0.00039493,2]
[357553028,1744138240323,-342.33864586,0.00039773,5]
[357553029,1744138240344,-157.66135414,0.00039773,5]
[357553030,1744138240361,-153.77688463,0.00039773,5]
[357553031,1744138240379,-159.75984,0.00039773,5]
[357553032,1744138240389,-502.8094571,0.00039773,5]
[357553033,1744138240399,-1150.06685384,0.000398,2]
[357553034,1744138240411,-3798.64934476,0.000398,2]
[357553035,1744138240424,-297.96628425,0.000398,2]
[357553053,1744138242917,-7189.59825592,0.000398,2]
[357553054,1744138242929,-27569.11366123,0.000398,2]
[357553055,1744138242939,-159.75984,0.00039973,2]
[357553056,1744138242950,-159.75984,0.00039973,5]
[357553057,1744138242959,-10637.6377978,0.0003999,2]
[357553058,1744138242969,-3427.73575153,0.0004,10]
[357553059,1744138242979,-20090.06471509,0.0004,3]
[357553060,1744138242988,-7988.77085826,0.0004,2]
[357553061,1744138242997,-776.17854809,0.0004,5]
[357553062,1744138243007,-308.46557002,0.0004,14]
[357553063,1744138243016,-500.0,0.00040115,2]
[357553064,1744138243025,-317.3,0.00040165,2]
[357553065,1744138243034,-2981.80092587,0.00040277,2]
[357553066,1744138243043,-5083.41249211,0.00041,2]
[357553067,1744138243055,-5503.37512738,0.00041,2]
[357553068,1744138243066,-1500.3924866,0.00041,2]
[357553069,1744138243078,-39580.84640534,0.00041,2]
[357553070,1744138243087,-777.44879042,0.00041,30]
[357553071,1744138243096,-8494.36771884,0.00041,5]
[357553072,1744138243106,-8214.17112782,0.00041,5]
[357553073,1744138243115,-166.0,0.00041,14]
[357553074,1744138243125,-500.0,0.00041096,30]
[357553075,1744138243134,-500.0,0.00041096,30]
[357553076,1744138243143,-500.0,0.00041096,30]
[357553077,1744138243152,-500.0,0.00041096,30]
[357553078,1744138243161,-500.0,0.00041096,30]
[357553079,1744138243170,-500.0,0.00041096,30]
[357553080,1744138243180,-500.0,0.00041096,30]
[357553081,1744138243189,-500.0,0.00041096,30]
[357553082,1744138243199,-252.0,0.00041096,30]
[357553083,1744138243208,-150.0,0.00041096,2]
[357553084,1744138243218,-500.0,0.000412,10]
[357553085,1744138243227,-500.0,0.000412,7]
[357553086,1744138243236,-1000.0,0.00041267,2]
[357553087,1744138243245,-151.88,0.00041534,2]
[357553088,1744138243255,-375.44745998,0.000419,15]
[357553089,1744138243264,-500.0,0.00041973,5]
[357553090,1744138243273,-501.74097551,0.00041973,10]
[357553091,1744138243283,-510.84355653,0.00041973,10]
[357553092,1744138243292,-500.0,0.00041973,10]
[357553093,1744138243300,-502.76189329,0.00041973,10]
[357553094,1744138243310,-500.0,0.00041973,10]
[357553095,1744138243319,-500.0,0.00041973,10]
[357553096,1744138243328,-209.60476085,0.00041973,10]
[357553097,1744138243337,-500.84203182,0.00041973,10]
[357553098,1744138243347,-500.37117842,0.00041973,10]
[357553099,1744138243359,-500.0,0.00041973,10]
[357553100,1744138243370,-159.75984,0.00041973,10]
[357553101,1744138243379,-159.75984,0.00041973,10]
[357553102,1744138243388,-471.25576975,0.00041973,10]
[357553104,1744138243398,-500.0,0.00041973,10]
[357553106,1744138243408,-64519.72119615,0.00042,2]
[357553109,1744138243417,-106011.34043678,0.00042,4]
[357553111,1744138243428,-324.0,0.00042,4]
[357553112,1744138243440,-801.0,0.00042,4]
[357553113,1744138243460,-8848.12458394,0.00042,4]
[357553114,1744138243470,-582.0,0.000421,3]
[357553115,1744138243479,-150.0,0.00042177,2]
[357553116,1744138243488,-317.3,0.00042429,2]
[357553117,1744138243498,-284.0,0.00042549,13]
[357553118,1744138243507,-200.0,0.00042549,2]
[357553119,1744138243516,-200.0,0.00042549,2]
[357553120,1744138243526,-200.0,0.00042549,2]
[357553121,1744138243535,-200.0,0.00042549,2]
[357553122,1744138243544,-200.0,0.00042549,2]
[357553123,1744138243553,-200.0,0.00042549,2]
[357553124,1744138243563,-200.0,0.00042549,2]
[357553125,1744138243572,-200.0,0.00042549,2]
[357553126,1744138243581,-200.0,0.00042549,2]
[357553127,1744138243590,-200.0,0.00042549,2]
[357553128,1744138243599,-200.0,0.00042549,2]
[357553129,1744138243608,-200.0,0.00042549,2]
[357553130,1744138243618,-200.0,0.00042549,2]
[357553131,1744138243627,-200.0,0.00042549,2]
[357553132,1744138243637,-200.0,0.00042549,2]
[357553133,1744138243646,-200.0,0.00042549,2]
[357553134,1744138243655,-200.0,0.00042549,2]
[357553135,1744138243665,-200.0,0.00042549,2]
[357553136,1744138243674,-200.0,0.00042549,2]
[357553137,1744138243683,-200.0,0.00042549,2]
[357553138,1744138243692,-200.0,0.00042549,2]
[357553139,1744138244024,-200.0,0.00042549,2]
[357553140,1744138244035,-200.0,0.00042549,2]
[357553141,1744138244044,-200.0,0.00042549,2]
[357553142,1744138244054,-200.0,0.00042549,2]
[357553143,1744138244063,-200.0,0.00042549,2]
[357553144,1744138244073,-200.0,0.00042549,2]
[357553145,1744138244083,-200.0,0.00042549,2]
[357553146,1744138244092,-200.0,0.00042549,2]
[357553147,1744138244102,-200.0,0.00042549,2]
[357553148,1744138244111,-200.0,0.00042549,2]
[357553149,1744138244120,-200.0,0.00042549,2]
[357553150,1744138244130,-200.0,0.00042549,2]
[357553151,1744138244140,-200.0,0.00042549,2]
[357553152,1744138244149,-276.0,0.00042549,2]
[357553153,1744138244159,-154.69171759,0.0004288,2]
[357553154,1744138244169,-150.0,0.000429,2]
[357553155,1744138244178,-300.0,0.000429,15]
[357553156,1744138244187,-166.0,0.00043151,90]
[357553157,1744138244198,-150.0,0.00043259,2]
[357553158,1744138244207,-5283.40433816,0.00043356,20]
[357553159,1744138244217,-700.0,0.00043372,16]
[357553160,1744138244226,-700.0,0.00043372,16]
[357553161,1744138244236,-700.0,0.00043372,16]
[357553162,1744138244245,-700.0,0.00043372,16]
[357553163,1744138244255,-700.0,0.00043372,16]
[357553164,1744138244264,-700.0,0.00043372,16]
[357553165,1744138244274,-700.0,0.00043372,16]
[357553166,1744138244283,-700.0,0.00043372,16]
[357553167,1744138244292,-700.0,0.00043372,16]
[357553168,1744138244302,-574.90629833,0.00043372,16]
[357553169,1744138244311,-150.13887848,0.00043441,31]
[357553170,1744138244320,-313.72842713,0.00043441,15]
[357553171,1744138244330,-1282.35829154,0.00043441,31]
[357553172,1744138244340,-1282.35829154,0.00043441,31]
[357553173,1744138244350,-1282.35829154,0.00043441,31]
[357553174,1744138244362,-1282.35829154,0.00043441,31]
[357553175,1744138244372,-1282.35829154,0.00043441,31]
[357553176,1744138244381,-1282.35829154,0.00043441,31]
[357553177,1744138244391,-1282.35829154,0.00043441,31]
[357553178,1744138244403,-1282.35829154,0.00043441,31]
[357553179,1744138244413,-1282.35829154,0.00043441,31]
[357553180,1744138244422,-1282.35829154,0.00043441,31]
[357553181,1744138244431,-1282.35829154,0.00043441,31]
[357553182,1744138244442,-1282.35829154,0.00043441,31]
[357553183,1744138244453,-1282.35829154,0.00043441,31]
[357553184,1744138244462,-1282.35829154,0.00043441,31]
[357553185,1744138244472,-1282.35829154,0.00043441,31]
[357553186,1744138244481,-1282.35829154,0.00043441,31]
[357553187,1744138244491,-1282.35829154,0.00043441,31]
[357553188,1744138244500,-1282.35829154,0.00043441,31]
[357553189,1744138244509,-1282.35829154,0.00043441,31]
[357553190,1744138244520,-151.54,0.00043445,2]
[357553191,1744138244529,-14196.8394768,0.00043445,3]
[357553192,1744138244539,-8360.51874034,0.00043445,3]
[357553193,1744138244990,-576.71566542,0.00043445,3]
[357553194,1744138244999,-151.54,0.00043446,2]
[357553195,1744138245010,-66093.00331998,0.00043456,2]
[357553196,1744138245030,-26951.50243565,0.00043456,2]
[357553197,1744138245039,-1486.48230582,0.00043456,10]
[357553198,1744138245049,-32339.5322371,0.00043456,2]
[357553199,1744138245058,-702.16725136,0.00043456,10]
[357553200,1744138245067,-218.60361306,0.00043456,7]
[357553201,1744138245077,-1517.28029062,0.00043456,2]
[357553202,1744138245086,-71902.58576692,0.00043456,2]
[357553203,1744138245096,-2231.80182628,0.00043456,10]
[357553204,1744138245105,-6001.4551644,0.00043456,2]
[357553205,1744138245115,-2262.25391629,0.00043456,10]
[357553206,1744138245124,-1000.0,0.00043456,10]
[357553207,1744138245134,-21684.63865152,0.00043456,2]
[357553208,1744138245143,-21507.50806515,0.00043456,2]
[357553209,1744138245152,-17146.85563321,0.00043456,2]
[357553210,1744138245162,-5386.28238662,0.00043456,2]
[357553211,1744138245171,-375.44745993,0.00043626,15]
[357553212,1744138245180,-304.50670281,0.00043836,2]
[357553213,1744138245189,-150.0,0.000442,10]
[357553214,1744138245199,-150.0,0.0004434,2]
[357553215,1744138245208,-317.3,0.00044692,2]
[357553216,1744138245218,-353.74894923,0.00044748,10]
[357553217,1744138245227,-151.0,0.00045,120]
[357553218,1744138245237,-946.01692747,0.00045252,10]
[357553219,1744138245247,-375.44745993,0.00045352,15]
[357553220,1744138245256,-150.0,0.00045422,2]
[357553221,1744138245265,-1000.0,0.00045852,2]
[357553222,1744138245275,-8937.23440576,0.00045877,3]
[357553223,1744138245284,-14196.8394768,0.00045887,3]
[357553224,1744138245293,-8937.23440576,0.00045887,3]
[357553225,1744138245303,-14756.52,0.00045897,2]
[357553226,1744138245313,-321.03,0.00045952,120]
[357553227,1744138245323,-750.0,0.0004597,3]
[357553228,1744138245332,-1000.0,0.00046,120]
[357553229,1744138245341,-8937.23440576,0.00046071,3]
[357553230,1744138245351,-14196.8394768,0.0004608,3]
[357553231,1744138245362,-160.2308047,0.00046366,23]
[357553232,1744138245372,-500.0,0.00046466,2]
[357553233,1744138245382,-150.0,0.00046503,2]
[357553234,1744138245391,-781.83725575,0.00046679,7]
[357553235,1744138245401,-317.3,0.00046956,2]
[357553236,1744138245412,-375.44745993,0.00047078,15]
[357553237,1744138245422,-5283.40433815,0.00047093,24]
[357553238,1744138245431,-163.72059966,0.00047104,22]
[357553239,1744138245443,-870.00259318,0.00047452,5]
[357553240,1744138245453,-1000.0,0.00047452,10]
[357553241,1744138245463,-2737.0,0.00047584,7]
[357553242,1744138245472,-150.0,0.00047585,2]
[357553243,1744138245481,-2764.80211325,0.00047777,2]
[357553244,1744138245491,-8937.23440576,0.00048023,4]
[357553245,1744138245501,-161.955587,0.000483,2]
[357553246,1744138245510,-156.65,0.00048408,2]
[357553247,1744138245520,-150.0,0.00048666,2]
[357553248,1744138245530,-519.93663786,0.000488,120]
[357553249,1744138245540,-375.44745993,0.00048804,15]
[357553250,1744138245549,-151.88,0.00048877,2]
[357553251,1744138245559,-151.54,0.00048985,120]
[357553252,1744138245568,-8937.23440576,0.00048995,4]
[357553253,1744138245578,-14196.8394768,0.00049005,4]
[357553254,1744138245588,-2000.0,0.00049023,8]
[357553255,1744138245597,-589.88532342,0.00049108,7]
[357553256,1744138245606,-317.3,0.0004922,2]
[357553257,1744138245616,-14196.8394768,0.00049285,4]
[357553258,1744138245626,-8937.23440576,0.00049285,4]
[357553259,1744138245636,-14196.8394768,0.00049295,4]
[357553260,1744138245646,-8937.23440576,0.00049295,4]
[357553261,1744138245656,-14196.8394768,0.00049305,4]
[357553262,1744138245665,-17874.4688115,0.00049305,4]
[357553263,1744138245675,-150.0,0.00049314,120]
[357553264,1744138245685,-853.66032808,0.00049315,16]
[357553265,1744138245695,-4556.06298211,0.00049315,16]
[357553266,1744138245705,-500.0,0.00049315,120]
[357553267,1744138245715,-500.0,0.00049315,120]
[357553268,1744138245725,-500.0,0.00049315,120]
[357553269,1744138245734,-500.0,0.00049315,120]
[357553270,1744138245744,-500.0,0.00049315,120]
[357553271,1744138245754,-500.0,0.00049315,120]
[357553272,1744138245763,-500.0,0.00049315,120]
[357553273,1744138245774,-150.0,0.00049315,120]
[357553274,1744138245783,-700.0,0.00049315,26]
[357553275,1744138245794,-191.95503898,0.00049315,120]
[357553276,1744138245803,-1000.0,0.00049315,15]
[357553277,1744138245813,-1000.0,0.00049315,15]
[357553278,1744138245823,-1001.0,0.00049315,15]
[357553279,1744138245833,-160.43570109,0.00049315,30]
[357553280,1744138245843,-288.63,0.000496,7]
[357553281,1744138245853,-8937.23440576,0.00049644,4]
[357553282,1744138245863,-14196.8394768,0.00049654,4]
[357553283,1744138245873,-150.0,0.00049664,120]
[357553284,1744138245888,-150.0,0.00049748,120]
[357553285,1744138245898,-700.0,0.000499,18]
[357553286,1744138245908,-8937.23440576,0.0004998,4]
[357553287,1744138245918,-564.09891221,0.0004998,7]
[357553288,1744138245927,-14196.8394768,0.0004999,4]
[357553289,1744138245936,-8937.23440576,0.0004999,4]
[357553290,1744138245945,-151.54,0.0004999,120]
[357553291,1744138245956,-3265.7404413,0.0005,120]
[357553292,1744138245966,-1275.6641261,0.0005,5]
[357553293,1744138245976,-2943.98651801,0.0005,3]
[357553294,1744138245986,-20125.00956587,0.0005,20]
[357553295,1744138245996,-7720.49867849,0.0005,5]
[357553296,1744138246006,-1516.8113192,0.0005,2]
[357553297,1744138246016,-157.94331245,0.0005,120]
[357553298,1744138246026,-2868.38644285,0.0005,2]
[357553299,1744138246035,-774.0,0.0005,120]
[357553300,1744138246045,-550.0,0.00050064,60]
[357553301,1744138246056,-1636.8139943,0.000501,7]
[357553302,1744138246065,-500.0,0.00050183,60]
[357553303,1744138246075,-8937.23440576,0.0005022,4]
[357553304,1744138246085,-14196.8394768,0.0005023,4]
[357553305,1744138246094,-159.75984,0.0005025,10]
[357553306,1744138246103,-500.0,0.0005025,10]
[357553307,1744138246113,-537.64094749,0.0005025,10]
[357553308,1744138246123,-2000.0,0.00050395,8]
[357553309,1744138246132,-500.0,0.00050398,60]
[357553310,1744138246142,-321.03,0.0005043,120]
[357553311,1744138246151,-1000.0,0.00050437,120]
[357553312,1744138246161,-375.44745993,0.0005053,15]
[357553313,1744138246171,-500.0,0.00050555,60]
[357553314,1744138246180,-500.0,0.00050559,60]
[357553315,1744138246191,-500.0,0.00050593,60]
[357553316,1744138246201,-422.48032482,0.00050614,120]
[357553317,1744138246211,-500.0,0.00050635,60]
[357553318,1744138246220,-150.0,0.00050684,120]
[357553319,1744138246230,-2341.32470065,0.00050721,30]
[357553321,1744138246240,-500.0,0.00050765,60]
[357553323,1744138246252,-500.0,0.00050773,60]
[357553325,1744138246262,-150.0,0.00050829,120]
[357553327,1744138246271,-5283.40433815,0.0005083,29]
[357553329,1744138246280,-500.0,0.00050877,60]
[357553330,1744138246290,-1000.4,0.000509,120]
[357553332,1744138246299,-500.0,0.00050904,60]
[357553333,1744138246309,-8937.23440576,0.00050923,4]
[357553334,1744138246319,-1008.93551029,0.0005093,2]
[357553335,1744138246328,-14196.8394768,0.00050933,4]
[357553336,1744138246339,-150.0,0.00050989,30]
[357553337,1744138246349,-150.0,0.00050989,30]
[357553338,1744138246364,-150.0,0.00050989,30]
[357553339,1744138246374,-258.31,0.00051004,30]
[357553340,1744138246384,-150.0,0.00051004,30]
[357553341,1744138246394,-150.0,0.00051004,30]
[357553342,1744138246403,-150.0,0.00051004,30]
[357553343,1744138246413,-150.69,0.00051005,2]
[357553344,1744138246422,-150.69,0.00051024,2]
[357553345,1744138246432,-150.69,0.00051044,2]
[357553346,1744138246446,-150.69,0.00051063,2]
[357553347,1744138246458,-500.0,0.00051068,60]
[357553348,1744138246467,-150.69,0.00051083,2]
[357553349,1744138246476,-150.69,0.00051103,2]
[357553350,1744138246486,-500.0,0.00051119,60]
[357553351,1744138246495,-150.69,0.00051122,2]
[357553352,1744138246505,-150.69,0.00051142,2]
[357553353,1744138246515,-150.69,0.00051161,2]
[357553354,1744138246524,-500.0,0.00051173,60]
[357553355,1744138246534,-150.69,0.00051181,2]
[357553356,1744138246544,-150.69,0.00051201,2]
[357553357,1744138246554,-150.69,0.0005122,2]
[357553358,1744138246564,-150.69,0.0005124,2]
[357553359,1744138246574,-8937.23440576,0.00051249,4]
[357553360,1744138246583,-150.69,0.0005126,2]
[357553361,1744138246595,-445.0,0.00051307,30]
[357553362,1744138246604,-195.37,0.00051307,30]
[357553363,1744138246613,-150.0,0.00051307,30]
[357553364,1744138246623,-319.56,0.00051307,30]
[357553365,1744138246633,-202.91,0.00051307,30]
[357553366,1744138246642,-445.0,0.00051307,30]
[357553367,1744138246651,-150.0,0.00051307,30]
[357553368,1744138246660,-150.0,0.00051307,30]
[357553369,1744138246669,-445.0,0.00051307,30]
[357553370,1744138246681,-150.0,0.00051307,30]
[357553371,1744138246690,-150.0,0.00051307,30]
[357553372,1744138246700,-150.0,0.00051307,30]
[357553373,1744138246710,-445.0,0.00051307,30]
[357553374,1744138246719,-150.0,0.00051307,30]
[357553375,1744138246728,-150.0,0.00051307,30]
[357553376,1744138246738,-445.0,0.00051307,30]
[357553377,1744138246747,-150.0,0.00051307,30]
[357553378,1744138246758,-150.0,0.00051307,30]
[357553379,1744138246767,-159.45,0.00051307,30]
[357553380,1744138246777,-159.45,0.00051307,30]
[357553381,1744138246786,-159.45,0.00051307,30]
[357553382,1744138246796,-159.45,0.00051307,30]
[357553383,1744138246805,-159.45,0.00051307,30]
[357553384,1744138246815,-159.45,0.00051307,30]
[357553385,1744138246824,-159.45,0.00051307,30]
[357553386,1744138246834,-159.45,0.00051307,30]
[357553387,1744138246843,-159.45,0.00051307,30]
[357553388,1744138246852,-159.45,0.00051307,30]
[357553389,1744138246862,-159.45,0.00051307,30]
[357553390,1744138246871,-159.45,0.00051307,30]
[357553391,1744138246880,-159.45,0.00051307,30]
[357553392,1744138246891,-159.45,0.00051307,30]